fUSD/lending_fUSD_20240514
["ID","MTS","AMOUNT","RATE_DAILY","PERIOD"]
[327001837,1715700640785,-502.49920518,0.00012876,2]
[327001838,1715700640795,-500.0,0.00012876,2]
[327001839,1715700640804,-500.0,0.00012876,2]
[327001840,1715700640814,-609.68,0.00012876,2]
[327001841,1715700640823,-500.0,0.00012876,2]
[327001842,1715700640833,-500.0,0.00012876,2]
[327001843,1715700640842,-505.36,0.00012876,2]
[327001844,1715700640852,-500.0,0.00012876,2]
[327001845,1715700640862,-500.0,0.00012876,2]
[327001846,1715700640873,-500.0,0.00012876,2]
[327001847,1715700640882,-500.0,0.00012876,2]
[327001848,1715700640891,-500.0,0.00012876,2]
[327001849,1715700640900,-500.0,0.00012876,2]
[327001850,1715700640909,-500.0,0.00012876,2]
[327001851,1715700640919,-500.0,0.00012876,2]
[327001852,1715700640928,-500.0,0.00012876,2]
[327001853,1715700640938,-580.29,0.00012876,2]
[327001854,1715700640948,-1347.64,0.00012876,2]
[327001855,1715700640957,-776.81,0.00012876,2]
[327001856,1715700640966,-500.0,0.00012876,2]
[327001857,1715700640976,-706.72,0.00012876,2]
[327001858,1715700640986,-500.0,0.00012876,2]
[327001859,1715700640996,-500.0,0.00012876,2]
[327001860,1715700641005,-500.0,0.00012876,2]
[327001861,1715700641014,-500.0,0.00012876,2]
[327001862,1715700641025,-500.0,0.00012876,2]
[327001863,1715700641035,-500.0,0.00012876,2]
[327001864,1715700641045,-500.0,0.00012876,2]
[327001865,1715700641055,-500.0,0.00012876,2]
[327001866,1715700641065,-500.0,0.00012876,2]
[327001867,1715700641074,-500.0,0.00012876,2]
[327001868,1715700641084,-500.0,0.00012876,2]
[327001869,1715700641093,-500.0,0.00012876,2]
[327001870,1715700641103,-500.0,0.00012876,2]
[327001871,1715700641112,-500.0,0.00012876,2]
[327001872,1715700641123,-1379.36,0.00012876,2]
[327001873,1715700641132,-690.28,0.00012876,2]
[327001874,1715700641142,-500.0,0.00012876,2]
[327001875,1715700641152,-500.0,0.00012876,2]
[327001876,1715700641161,-500.0,0.00012876,2]
[327001877,1715700641171,-500.0,0.00012876,2]
[327001878,1715700641180,-500.0,0.00012876,2]
[327001879,1715700641190,-500.0,0.00012876,2]
[327001880,1715700641200,-500.0,0.00012876,2]
[327001881,1715700641209,-531.381043,0.00012876,2]
[327001882,1715700641219,-161.97161963,0.00012876,2]
[327001883,1715700641229,-500.0,0.00012876,2]
[327001884,1715700641238,-528.79100783,0.00012876,2]
[327001885,1715700641248,-500.0,0.00012876,2]
[327001886,1715700641257,-3297.2,0.00012876,2]
[327001887,1715700641268,-500.0,0.00012876,2]
[327001888,1715700641281,-500.0,0.00012876,2]
[327001889,1715700641291,-612.82,0.00012876,2]
[327001890,1715700641300,-500.0,0.00012876,2]
[327001891,1715700641311,-500.0,0.00012876,2]
[327001892,1715700641320,-506.99099452,0.00012876,2]
[327001893,1715700641330,-9161.56,0.00012876,2]
[327001894,1715700641339,-551.28,0.00012876,2]
[327001895,1715700641349,-500.0,0.00012876,2]
[327001896,1715700641361,-500.0,0.00012876,2]
[327001897,1715700641374,-500.0,0.00012876,2]
[327001898,1715700641384,-500.0,0.00012876,2]
[327001899,1715700641393,-500.0,0.00012876,2]
[327001900,1715700641403,-500.0,0.00012876,2]
[327001901,1715700641413,-3535.86,0.00012876,2]
[327001902,1715700641422,-861.04,0.00012876,2]
[327001903,1715700641435,-171.30451384,0.00012876,2]
[327001904,1715700641446,-158.39,0.00012876,2]
[327001905,1715700641456,-500.0,0.00012876,2]
[327001906,1715700641466,-500.0,0.00012876,2]
[327001907,1715700641476,-1528.82,0.00012876,2]
[327001908,1715700641486,-243.84536137,0.00012876,2]
[327001909,1715700641495,-500.0,0.00012876,2]
[327001910,1715700641505,-500.0,0.00012876,2]
[327001911,1715700641515,-231.34,0.00012876,2]
[327001912,1715700641525,-532.39202969,0.00012876,2]
[327001913,1715700641536,-500.0,0.00012876,2]
[327001914,1715700641546,-500.0,0.00012876,2]
[327001915,1715700641556,-500.0,0.00012876,2]
[327001916,1715700641565,-500.0,0.00012876,2]
[327001917,1715700641574,-500.0,0.00012876,2]
[327001918,1715700641584,-296.40493236,0.00012876,2]
[327001919,1715700641593,-500.0,0.00012876,2]
[327001920,1715700641603,-500.0,0.00012876,2]
[327001921,1715700641613,-500.0,0.00012876,2]
[327001922,1715700641625,-500.0,0.00012876,2]
[327001923,1715700641635,-619.38467681,0.00012876,2]
[327001924,1715700641644,-512.48882488,0.00012876,2]
[327001925,1715700641654,-500.0,0.00012876,2]
[327001926,1715700641664,-500.0,0.00012876,2]
[327001927,1715700641674,-616.58,0.00012876,2]
[327001928,1715700641684,-500.0,0.00012876,2]
[327001929,1715700641694,-500.0,0.00012876,2]
[327001930,1715700641703,-500.0,0.00012876,2]
[327001931,1715700641712,-500.0,0.00012876,2]
[327001932,1715700641723,-500.0,0.00012876,2]
[327001933,1715700641734,-500.0,0.00012876,2]
[327001934,1715700641744,-1349.59,0.00012876,2]
[327001935,1715700641754,-500.0,0.00012876,2]
[327001936,1715700641763,-623.19,0.00012876,2]
[327001937,1715700641774,-500.0,0.00012876,2]
[327001938,1715700641784,-500.0,0.00012876,2]
[327001939,1715700641794,-500.0,0.00012876,2]
[327001940,1715700641804,-1002.85,0.00012876,2]
[327001941,1715700641813,-500.0,0.00012876,2]
[327001942,1715700641823,-500.0,0.00012876,2]
[327001943,1715700641834,-500.0,0.00012876,2]
[327001944,1715700641843,-500.0,0.00012876,2]
[327001945,1715700641853,-500.0,0.00012876,2]
[327001946,1715700641862,-509.3382265,0.00012876,2]
[327001947,1715700641874,-541.5,0.00012876,2]
[327001948,1715700641884,-651.96,0.00012876,2]
[327001949,1715700641893,-500.0,0.00012876,2]
[327001950,1715700641902,-500.0,0.00012876,2]
[327001951,1715700641912,-500.0,0.00012876,2]
[327001952,1715700641922,-500.0,0.00012876,2]
[327001953,1715700641932,-858.74,0.00012876,2]
[327001954,1715700641941,-278.2648929,0.00012876,2]
[327001955,1715700641953,-1139.97,0.00012876,2]
[327001956,1715700641962,-974.53,0.00012876,2]
[327001957,1715700641971,-1259.59,0.00012876,2]
[327001958,1715700641981,-1823.27,0.00012876,2]
[327001959,1715700641990,-500.0,0.00012876,2]
[327001960,1715700642000,-782.49,0.00012876,2]
[327001961,1715700642009,-500.0,0.00012876,2]
[327001962,1715700642019,-500.0,0.00012876,2]
[327001963,1715700642028,-500.0,0.00012876,2]
[327001964,1715700642038,-500.0,0.00012876,2]
[327001965,1715700642047,-500.0,0.00012876,2]
[327001966,1715700642057,-500.0,0.00012876,2]
[327001967,1715700642067,-494.66,0.00012876,2]
[327001968,1715700642077,-500.0,0.00012876,2]
[327001969,1715700642087,-500.0,0.00012876,2]
[327001970,1715700642097,-500.0,0.00012876,2]
[327001971,1715700642106,-647.22926359,0.00012876,2]
[327001972,1715700642116,-1313.76,0.00012876,2]
[327001973,1715700642127,-500.0,0.00012876,2]
[327001974,1715700642136,-500.0,0.00012876,2]
[327001975,1715700642146,-3778.21,0.00012876,2]
[327001976,1715700642155,-500.0,0.00012876,2]
[327001977,1715700642165,-500.0,0.00012876,2]
[327001978,1715700642176,-519.3,0.00012876,2]
[327001979,1715700642185,-500.0,0.00012876,2]
[327001980,1715700642194,-500.0,0.00012876,2]
[327001981,1715700642204,-500.0,0.00012876,2]
[327001982,1715700642214,-500.0,0.00012876,2]
[327001983,1715700642224,-500.0,0.00012876,2]
[327001984,1715700642233,-550.35,0.00012876,2]
[327001985,1715700642243,-507.4118039,0.00012876,2]
[327001986,1715700642253,-500.0,0.00012876,2]
[327001987,1715700642263,-1172.26,0.00012876,2]
[327001988,1715700642275,-160.98458522,0.00012879,2]
[327001989,1715700642284,-154.03,0.0001297,2]
[327001990,1715700642294,-3297.2,0.00012977,2]
[327001991,1715700642303,-500.0,0.00012977,2]
[327001992,1715700642314,-500.0,0.00012977,2]
[327001993,1715700642324,-500.0,0.00012977,2]
[327001994,1715700642333,-500.0,0.00012977,2]
[327001995,1715700642343,-500.0,0.00012977,2]
[327001996,1715700642354,-500.0,0.00012977,2]
[327001997,1715700642363,-500.0,0.00012977,2]
[327001998,1715700642374,-500.0,0.00012977,2]
[327001999,1715700642384,-500.0,0.00012977,2]
[327002000,1715700642393,-623.19,0.00012977,2]
[327002001,1715700642403,-500.0,0.00012977,2]
[327002002,1715700642412,-1002.85,0.00012977,2]
[327002003,1715700642421,-500.0,0.00012977,2]
[327002004,1715700642431,-500.0,0.00012977,2]
[327002005,1715700642442,-541.5,0.00012977,2]
[327002006,1715700642452,-651.96,0.00012977,2]
[327002007,1715700642461,-500.0,0.00012977,2]
[327002008,1715700642674,-500.0,0.00012977,2]
[327002009,1715700642685,-500.0,0.00012977,2]
[327002010,1715700642695,-858.74,0.00012977,2]
[327002011,1715700642706,-1139.97,0.00012977,2]
[327002012,1715700642717,-974.53,0.00012977,2]
[327002013,1715700642727,-347.05115381,0.00012977,2]
[327002014,1715700642851,-912.53884619,0.00012977,2]
[327002015,1715700642861,-255.79934677,0.00012977,2]
[327002016,1715700642875,-526.69065323,0.00012977,2]
[327002017,1715700642885,-500.0,0.00012977,2]
[327002018,1715700642894,-500.0,0.00012977,2]
[327002019,1715700642904,-500.0,0.00012977,2]
[327002020,1715700642914,-500.0,0.00012977,2]
[327002021,1715700642924,-500.0,0.00012977,2]
[327002022,1715700642934,-500.0,0.00012977,2]
[327002023,1715700642943,-3778.21,0.00012977,2]
[327002024,1715700642953,-500.0,0.00012977,2]
[327002025,1715700642962,-519.3,0.00012977,2]
[327002026,1715700642971,-500.0,0.00012977,2]
[327002027,1715700642982,-500.0,0.00012977,2]
[327002028,1715700642993,-500.0,0.00012977,2]
[327002029,1715700643003,-454.10068357,0.00012977,2]
[327002030,1715700643013,-550.35,0.00012977,2]
[327002031,1715700643022,-500.0,0.00012977,2]
[327002032,1715700643031,-1172.26,0.00012977,2]
[327002033,1715700643043,-156.05629835,0.00012978,2]
[327002034,1715700643052,-155.76867218,0.00012978,2]
[327002035,1715700643062,-165.53963886,0.00012978,2]
[327002036,1715700643072,-500.0,0.00012978,2]
[327002037,1715700643082,-500.0,0.00012978,2]
[327002038,1715700643091,-500.0,0.00012978,2]
[327002039,1715700643102,-500.0,0.00012978,2]
[327002040,1715700643112,-500.0,0.00012978,2]
[327002041,1715700643123,-500.0,0.00012978,2]
[327002042,1715700643132,-500.0,0.00012978,2]
[327002043,1715700643142,-500.0,0.00012978,2]
[327002044,1715700643152,-500.0,0.00012978,2]
[327002045,1715700643161,-500.0,0.00012978,2]
[327002046,1715700643171,-500.0,0.00012978,2]
[327002047,1715700643181,-500.0,0.00012978,2]
[327002048,1715700643190,-500.0,0.00012978,2]
[327002049,1715700643199,-500.0,0.00012978,2]
[327002050,1715700643209,-500.0,0.00012978,2]
[327002051,1715700643218,-500.0,0.00012978,2]
[327002052,1715700643227,-500.0,0.00012978,2]
[327002053,1715700643236,-500.0,0.00012978,2]
[327002054,1715700643246,-500.0,0.00012978,2]
[327002055,1715700643255,-500.0,0.00012978,2]
[327002056,1715700643269,-612.82,0.00012978,2]
[327002057,1715700643279,-500.0,0.00012978,2]
[327002058,1715700643288,-9161.56,0.00012978,2]
[327002059,1715700643297,-551.28,0.00012978,2]
[327002060,1715700643307,-500.0,0.00012978,2]
[327002061,1715700643316,-500.0,0.00012978,2]
[327002062,1715700643326,-3535.86,0.00012978,2]
[327002063,1715700643336,-1528.82,0.00012978,2]
[327002064,1715700643346,-500.0,0.00012978,2]
[327002065,1715700643356,-500.0,0.00012978,2]
[327002067,1715700643366,-500.0,0.00012978,2]
[327002073,1715700643376,-500.0,0.00012978,2]
[327002078,1715700643386,-500.0,0.00012978,2]
[327002082,1715700643396,-500.0,0.00012978,2]
[327002085,1715700643406,-1349.59,0.00012978,2]
[327002088,1715700643415,-500.0,0.00012978,2]
[327002091,1715700643424,-500.0,0.00012978,2]
[327002093,1715700643435,-500.0,0.00012978,2]
[327002094,1715700643445,-500.0,0.00012978,2]
[327002095,1715700643455,-1823.27,0.00012978,2]
[327002096,1715700643466,-500.0,0.00012978,2]
[327002097,1715700643475,-1313.76,0.00012978,2]
[327002098,1715700643486,-500.0,0.00012978,2]
[327002099,1715700643495,-317.63013013,0.00012979,2]
[327002100,1715700643505,-500.0,0.00012979,2]
[327002101,1715700643514,-500.0,0.00012979,2]
[327002102,1715700643524,-500.0,0.00012979,2]
[327002103,1715700643533,-500.0,0.00012979,2]
[327002104,1715700643542,-687.99,0.00012979,2]
[327002105,1715700643552,-591.47485046,0.00012979,2]
[327002106,1715700643561,-500.0,0.00012979,2]
[327002107,1715700643571,-609.68,0.00012979,2]
[327002108,1715700643581,-500.0,0.00012979,2]
[327002109,1715700643590,-500.0,0.00012979,2]
[327002110,1715700643600,-500.0,0.00012979,2]
[327002111,1715700643609,-500.0,0.00012979,2]
[327002112,1715700643621,-580.29,0.00012979,2]
[327002113,1715700643630,-1347.64,0.00012979,2]
[327002114,1715700643639,-776.81,0.00012979,2]
[327002115,1715700643649,-706.72,0.00012979,2]
[327002116,1715700643658,-500.0,0.00012979,2]
[327002117,1715700643668,-500.0,0.00012979,2]
[327002118,1715700643677,-500.0,0.00012979,2]
[327002119,1715700643687,-500.0,0.00012979,2]
[327002120,1715700643696,-1379.36,0.00012979,2]
[327002121,1715700643706,-690.28,0.00012979,2]
[327002122,1715700643715,-500.0,0.00012979,2]
[327002123,1715700643724,-500.0,0.00012979,2]
[327002124,1715700643734,-554.01,0.00012979,2]
[327002125,1715700643743,-861.04,0.00012979,2]
[327002126,1715700643752,-500.0,0.00012979,2]
[327002127,1715700643762,-500.0,0.00012979,2]
[327002128,1715700643771,-500.0,0.00012979,2]
[327002129,1715700643782,-500.0,0.00012979,2]
[327002130,1715700643791,-500.0,0.00012979,2]
[327002131,1715700643801,-500.0,0.00012979,2]
[327002132,1715700643811,-500.0,0.00012979,2]
[327002133,1715700643821,-500.0,0.00012979,2]
[327002134,1715700643832,-512.54349991,0.00012979,2]
[327002135,1715700643842,-507.39202392,0.00012979,2]
[327002136,1715700643851,-500.0,0.00012979,2]
[327002137,1715700643861,-500.0,0.00012979,2]
[327002138,1715700643873,-500.0,0.00012979,2]
[327002139,1715700643883,-500.0,0.00012979,2]
[327002140,1715700643892,-500.0,0.00012979,2]
[327002141,1715700643901,-520.20480434,0.00012979,2]
[327002142,1715700643910,-387.22,0.00012979,2]
[327002143,1715700643920,-500.0,0.00012979,2]
[327002144,1715700643930,-334.41621708,0.00012979,2]
[327002145,1715700643938,-167787.33359718,0.0001298,6]
[327002146,1715700643946,-500.0,0.00012984,2]
[327002147,1715700643953,-500.0,0.00012984,2]
[327002148,1715700643960,-500.0,0.00012984,2]
[327002149,1715700643968,-500.0,0.00012984,2]
[327002150,1715700643975,-623.19,0.00012984,2]
[327002151,1715700643983,-500.0,0.00012984,2]
[327002152,1715700643991,-500.0,0.00012984,2]
[327002153,1715700643998,-541.5,0.00012984,2]
[327002154,1715700644006,-453.05,0.00012984,2]
[327002155,1715700644013,-500.0,0.00012984,2]
[327002156,1715700644021,-500.0,0.00012984,2]
[327002157,1715700644028,-1139.97,0.00012984,2]
[327002158,1715700644035,-974.53,0.00012984,2]
[327002159,1715700644043,-1259.59,0.00012984,2]
[327002160,1715700644049,-782.49,0.00012984,2]
[327002161,1715700644057,-500.0,0.00012984,2]
[327002162,1715700644064,-500.0,0.00012984,2]
[327002163,1715700644071,-500.0,0.00012984,2]
[327002164,1715700644077,-3778.21,0.00012984,2]
[327002165,1715700644084,-500.0,0.00012984,2]
[327002166,1715700644090,-519.3,0.00012984,2]
[327002167,1715700644097,-500.0,0.00012984,2]
[327002168,1715700644105,-500.0,0.00012984,2]
[327002169,1715700644112,-500.0,0.00012984,2]
[327002170,1715700644123,-500.0,0.00012984,2]
[327002171,1715700644130,-1172.26,0.00012984,2]
[327002172,1715700644138,-7123.21505271,0.00012985,2]
[327002173,1715700644144,-2000.0,0.00012985,2]
[327002174,1715700644152,-200.0,0.00012985,2]
[327002175,1715700644159,-155.0,0.00012987,2]
[327002176,1715700644168,-3297.2,0.00012991,2]
[327002177,1715700644175,-500.0,0.00012991,2]
[327002178,1715700644182,-500.0,0.00012991,2]
[327002179,1715700644191,-500.0,0.00012991,2]
[327002180,1715700644200,-500.0,0.00012991,2]
[327002181,1715700644207,-500.0,0.00012991,2]
[327002182,1715700644214,-1002.85,0.00012991,2]
[327002183,1715700644221,-651.96,0.00012991,2]
[327002184,1715700644228,-858.74,0.00012991,2]
[327002185,1715700644235,-500.0,0.00012991,2]
[327002186,1715700644243,-500.0,0.00012991,2]
[327002187,1715700644252,-500.0,0.00012991,2]
[327002188,1715700644259,-550.35,0.00012991,2]
[327002189,1715700644266,-500.0,0.00012992,2]
[327002190,1715700644280,-500.0,0.00012992,2]
[327002191,1715700644287,-500.0,0.00012992,2]
[327002192,1715700644294,-500.0,0.00012992,2]
[327002193,1715700644301,-500.0,0.00012992,2]
[327002194,1715700644309,-500.0,0.00012992,2]
[327002195,1715700644316,-500.0,0.00012992,2]
[327002197,1715700644324,-500.0,0.00012992,2]
[327002198,1715700644332,-500.0,0.00012992,2]
[327002200,1715700644341,-500.0,0.00012992,2]
[327002202,1715700644352,-500.0,0.00012992,2]
[327002204,1715700644358,-500.0,0.00012992,2]
[327002205,1715700644368,-500.0,0.00012992,2]
[327002206,1715700644377,-500.0,0.00012992,2]
[327002207,1715700644386,-500.0,0.00012992,2]
[327002208,1715700644395,-380.56,0.00012992,2]
[327002209,1715700644404,-500.0,0.00012992,2]
[327002210,1715700644412,-500.0,0.00012992,2]
[327002211,1715700644419,-195.42,0.00012992,2]
[327002212,1715700644427,-409.94933149,0.00012992,2]
[327002213,1715700644438,-500.0,0.00012992,2]
[327002214,1715700644448,-612.82,0.00012992,2]
[327002215,1715700644461,-500.0,0.00012992,2]
[327002216,1715700644472,-9161.56,0.00012992,2]
[327002217,1715700644484,-551.28,0.00012992,2]
[327002218,1715700644492,-500.0,0.00012992,2]
[327002219,1715700644500,-500.0,0.00012992,2]
[327002220,1715700644509,-3535.86,0.00012992,2]
[327002221,1715700644519,-1528.82,0.00012992,2]
[327002222,1715700644529,-500.0,0.00012992,2]
[327002223,1715700644538,-500.0,0.00012992,2]
[327002224,1715700644547,-500.0,0.00012992,2]
[327002225,1715700644556,-500.0,0.00012992,2]
[327002226,1715700644566,-500.0,0.00012992,2]
[327002227,1715700644575,-500.0,0.00012992,2]
[327002228,1715700644585,-500.0,0.00012992,2]
[327002229,1715700644595,-500.0,0.00012992,2]
[327002230,1715700644604,-500.0,0.00012992,2]
[327002231,1715700644613,-500.0,0.00012992,2]
[327002232,1715700644627,-1349.59,0.00012992,2]
[327002233,1715700644637,-623.19,0.00012992,2]
[327002234,1715700644646,-500.0,0.00012992,2]
[327002235,1715700644656,-500.0,0.00012992,2]
[327002236,1715700644667,-500.0,0.00012992,2]
[327002237,1715700644676,-500.0,0.00012992,2]
[327002238,1715700644686,-500.0,0.00012992,2]
[327002239,1715700644696,-541.5,0.00012992,2]
[327002240,1715700644705,-500.0,0.00012992,2]
[327002241,1715700644715,-500.0,0.00012992,2]
[327002242,1715700644722,-500.0,0.00012992,2]
[327002243,1715700644731,-1139.97,0.00012992,2]
[327002244,1715700644740,-974.53,0.00012992,2]
[327002245,1715700644750,-1259.59,0.00012992,2]
[327002246,1715700644758,-1823.27,0.00012992,2]
[327002247,1715700644768,-782.49,0.00012992,2]
[327002248,1715700644778,-500.0,0.00012992,2]
[327002249,1715700644787,-500.0,0.00012992,2]
[327002250,1715700644796,-1313.76,0.00012992,2]
[327002251,1715700644806,-500.0,0.00012992,2]
[327002252,1715700644816,-500.0,0.00012992,2]
[327002253,1715700644824,-3778.21,0.00012992,2]
[327002254,1715700644833,-641.79,0.00012992,2]
[327002255,1715700644844,-519.3,0.00012992,2]
[327002256,1715700644854,-500.0,0.00012992,2]
[327002257,1715700644862,-302.24,0.00012992,2]
[327002258,1715700644872,-500.0,0.00012992,2]
[327002259,1715700644882,-500.0,0.00012992,2]
[327002260,1715700644892,-500.0,0.00012992,2]
[327002261,1715700644903,-168.53395228,0.00012993,2]
[327002262,1715700644914,-4120.02025571,0.00012993,2]
[327002263,1715700644926,-222.89,0.00012993,2]
[327002264,1715700644938,-500.0,0.00012993,2]
[327002265,1715700644950,-500.0,0.00012993,2]
[327002266,1715700644962,-500.0,0.00012993,2]
[327002267,1715700644972,-500.0,0.00012993,2]
[327002268,1715700644984,-500.0,0.00012993,2]
[327002269,1715700644996,-500.0,0.00012993,2]
[327002270,1715700645006,-500.0,0.00012993,2]
[327002271,1715700645018,-500.0,0.00012993,2]
[327002272,1715700645030,-687.99,0.00012993,2]
[327002273,1715700645041,-687.99,0.00012993,2]
[327002274,1715700645052,-687.99,0.00012993,2]
[327002275,1715700645062,-500.0,0.00012993,2]
[327002276,1715700645074,-436.51,0.00012993,2]
[327002277,1715700645086,-609.68,0.00012993,2]
[327002278,1715700645097,-609.68,0.00012993,2]
[327002279,1715700645107,-609.68,0.00012993,2]
[327002280,1715700645118,-500.0,0.00012993,2]
[327002281,1715700645129,-500.0,0.00012993,2]
[327002282,1715700645139,-500.0,0.00012993,2]
[327002283,1715700645150,-500.0,0.00012993,2]
[327002284,1715700645160,-500.0,0.00012993,2]
[327002285,1715700645171,-500.0,0.00012993,2]
[327002286,1715700645182,-500.0,0.00012993,2]
[327002287,1715700645193,-500.0,0.00012993,2]
[327002288,1715700645203,-500.0,0.00012993,2]
[327002289,1715700645216,-500.0,0.00012993,2]
[327002290,1715700645227,-504.63,0.00012993,2]
[327002291,1715700645238,-580.29,0.00012993,2]
[327002292,1715700645249,-580.29,0.00012993,2]
[327002293,1715700645260,-580.29,0.00012993,2]
[327002294,1715700645273,-1347.64,0.00012993,2]
[327002295,1715700645284,-1347.64,0.00012993,2]
[327002296,1715700645295,-1347.64,0.00012993,2]
[327002297,1715700645306,-776.81,0.00012993,2]
[327002298,1715700645317,-776.81,0.00012993,2]
[327002299,1715700645328,-776.81,0.00012993,2]
[327002300,1715700645338,-500.0,0.00012993,2]
[327002301,1715700645352,-500.0,0.00012993,2]
[327002302,1715700645362,-706.72,0.00012993,2]
[327002303,1715700645375,-706.72,0.00012993,2]
[327002304,1715700645386,-706.72,0.00012993,2]
[327002305,1715700645397,-500.0,0.00012993,2]
[327002306,1715700645407,-500.0,0.00012993,2]
[327002307,1715700645418,-394.60318798,0.00012993,2]
[327002308,1715700645429,-500.0,0.00012993,2]
[327002309,1715700645439,-500.0,0.00012993,2]
[327002310,1715700645451,-500.0,0.00012993,2]
[327002311,1715700645461,-500.0,0.00012993,2]
[327002312,1715700645473,-500.0,0.00012993,2]
[327002313,1715700645484,-500.0,0.00012993,2]
[327002314,1715700645495,-500.0,0.00012993,2]
[327002315,1715700645506,-500.0,0.00012993,2]
[327002316,1715700645517,-500.0,0.00012993,2]
[327002317,1715700645527,-500.0,0.00012993,2]
[327002318,1715700645538,-500.0,0.00012993,2]
[327002319,1715700645550,-534.76,0.00012993,2]
[327002320,1715700645561,-500.0,0.00012993,2]
[327002321,1715700645572,-152.6,0.00012993,2]
[327002322,1715700645583,-500.0,0.00012993,2]
[327002323,1715700645595,-500.0,0.00012993,2]
[327002324,1715700645605,-542.84438094,0.00012993,2]
[327002325,1715700645619,-505.16483236,0.00012993,2]
[327002326,1715700645629,-526.88275988,0.00012993,2]
[327002327,1715700645639,-500.0,0.00012993,2]
[327002328,1715700645650,-500.0,0.00012993,2]
[327002329,1715700645660,-1379.36,0.00012993,2]
[327002330,1715700645671,-1379.36,0.00012993,2]
[327002331,1715700645682,-1379.36,0.00012993,2]
[327002332,1715700645693,-690.28,0.00012993,2]
[327002333,1715700645703,-690.28,0.00012993,2]
[327002334,1715700645715,-690.28,0.00012993,2]
[327002335,1715700645726,-500.0,0.00012993,2]
[327002336,1715700645736,-500.0,0.00012993,2]
[327002337,1715700645747,-500.0,0.00012993,2]
[327002338,1715700645758,-500.0,0.00012993,2]
[327002339,1715700645770,-500.0,0.00012993,2]
[327002340,1715700645781,-472.36,0.00012993,2]
[327002341,1715700645792,-500.0,0.00012993,2]
[327002342,1715700645803,-500.0,0.00012993,2]
[327002343,1715700645814,-500.0,0.00012993,2]
[327002344,1715700645825,-500.0,0.00012993,2]
[327002345,1715700645837,-500.0,0.00012993,2]
[327002346,1715700645848,-500.0,0.00012993,2]
[327002347,1715700645859,-3297.2,0.00012993,2]
[327002348,1715700645871,-500.0,0.00012993,2]
[327002349,1715700645882,-3297.2,0.00012993,2]
[327002350,1715700645893,-500.0,0.00012993,2]
[327002351,1715700645904,-3297.2,0.00012993,2]
[327002352,1715700645916,-612.82,0.00012993,2]
[327002353,1715700645927,-612.82,0.00012993,2]
[327002354,1715700645939,-500.0,0.00012993,2]
[327002355,1715700645950,-500.0,0.00012993,2]
[327002356,1715700645961,-500.0,0.00012993,2]
[327002357,1715700645972,-500.0,0.00012993,2]
[327002358,1715700645983,-500.0,0.00012993,2]
[327002359,1715700645993,-500.0,0.00012993,2]
[327002360,1715700646004,-9161.56,0.00012993,2]